[Event "Titled Tuesday Blitz May 9 Early 2023"]
[White "Namitbir Singh Walia"]
[Black "demon64fields"]
[WhiteFideId "35071068"]
[WhiteElo "2239"]
[BlackElo "2891"]
[Result "0-1"]
[Round "02"]
[TimeControl "180+2"]
[Date "2023.05.09"]
[WhiteClock "0:00:00"]
[BlackClock "0:01:27"]

1. e4 {[%clk 0:03:00]}  e6 {[%clk 0:02:59]} 2. d4 {[%clk 0:03:00]}  d5 {[%clk 0:03:00]} 3. Nd2 {[%clk 0:03:00]}  c5 {[%clk 0:03:00]} 4. exd5 {[%clk 0:02:58]}  exd5 {[%clk 0:03:01]} 5. Ngf3 {[%clk 0:02:57]}  Nc6 {[%clk 0:03:01]} 6. Bb5 {[%clk 0:02:57]}  Bd6 {[%clk 0:03:01]} 7. dxc5 {[%clk 0:02:55]}  Bxc5 {[%clk 0:03:02]} 8. O-O {[%clk 0:02:56]}  Ne7 {[%clk 0:03:03]} 9. Nb3 {[%clk 0:02:53]}  Bb6 {[%clk 0:03:03]} 10. h3 {[%clk 0:02:47]}  O-O {[%clk 0:03:03]} 11. c3 {[%clk 0:02:47]}  Qd6 {[%clk 0:03:01]} 12. Re1 {[%clk 0:02:42]}  a6 {[%clk 0:03:01]} 13. Bd3 {[%clk 0:02:42]}  Bxh3 {[%clk 0:03:02]} 14. Bxh7+ {[%clk 0:02:18]}  Kxh7 {[%clk 0:02:53]} 15. Ng5+ {[%clk 0:02:18]}  Kg8 {[%clk 0:02:53]} 16. Nxh3 {[%clk 0:02:12]}  Rad8 {[%clk 0:02:53]} 17. Be3 {[%clk 0:02:03]}  Bxe3 {[%clk 0:02:46]} 18. Rxe3 {[%clk 0:02:04]}  Nf5 {[%clk 0:02:47]} 19. Rd3 {[%clk 0:02:00]}  Ne5 {[%clk 0:02:46]} 20. Rd2 {[%clk 0:01:54]}  Nc4 {[%clk 0:02:46]} 21. Rc2 {[%clk 0:01:52]}  Rfe8 {[%clk 0:02:41]} 22. Nd4 {[%clk 0:01:51]}  Qf6 {[%clk 0:02:29]} 23. Nxf5 {[%clk 0:01:08]}  Qxf5 {[%clk 0:02:30]} 24. Re2 {[%clk 0:01:08]}  Re6 {[%clk 0:02:27]} 25. b3 {[%clk 0:01:04]}  Nd6 {[%clk 0:02:25]} 26. Rxe6 {[%clk 0:00:57]}  fxe6 {[%clk 0:02:26]} 27. Qd4 {[%clk 0:00:45]}  Nb5 {[%clk 0:02:20]} 28. Qd2 {[%clk 0:00:40]}  e5 {[%clk 0:02:14]} 29. a4 {[%clk 0:00:34]}  Nc7 {[%clk 0:02:13]} 30. Re1 {[%clk 0:00:31]}  e4 {[%clk 0:02:03]} 31. Qf4 {[%clk 0:00:20]}  Qxf4 {[%clk 0:02:02]} 32. Nxf4 {[%clk 0:00:21]}  g5 {[%clk 0:02:00]} 33. Ne2 {[%clk 0:00:22]}  Ne6 {[%clk 0:02:00]} 34. Rd1 {[%clk 0:00:22]}  Kf7 {[%clk 0:01:55]} 35. b4 {[%clk 0:00:21]}  Ke7 {[%clk 0:01:53]} 36. Kf1 {[%clk 0:00:19]}  Kf6 {[%clk 0:01:53]} 37. Ke1 {[%clk 0:00:19]}  Ke5 {[%clk 0:01:53]} 38. f3 {[%clk 0:00:16]}  Rh8 {[%clk 0:01:46]} 39. Kf2 {[%clk 0:00:10]}  Nf4 {[%clk 0:01:44]} 40. fxe4 {[%clk 0:00:06]}  dxe4 {[%clk 0:01:44]} 41. Ng1 {[%clk 0:00:02]}  Rh2 {[%clk 0:01:39]} 42. Rd7 {[%clk 0:00:02]}  Rxg2+ {[%clk 0:01:39]} 43. Kf1 {[%clk 0:00:03]}  Rc2 {[%clk 0:01:39]} 44. Rxb7 {[%clk 0:00:03]}  Rxc3 {[%clk 0:01:39]} 45. Rb6 {[%clk 0:00:03]}  Rc1+ {[%clk 0:01:37]} 46. Kf2 {[%clk 0:00:03]}  Rc2+ {[%clk 0:01:37]} 47. Kf1 {[%clk 0:00:03]}  Rc1+ {[%clk 0:01:27]} 48. Kf2 {[%clk 0:00:03]}  e3+ {[%clk 0:01:28]} 49. Kf3 {[%clk 0:00:00]}  Rxg1 {[%clk 0:01:27]} 0-1


[Site "https://www.chess.com"]

[Event "Titled Tuesday Blitz May 9 Early 2023"]
[White "Bochnicka, Vladimir"]
[Black "Gharibyan, Mamikon"]
[WhiteFideId "14943450"]
[BlackFideId "13308300"]
[WhiteElo "2094"]
[BlackElo "2445"]
[Result "0-1"]
[Round "02"]
[TimeControl "180+2"]
[Date "2023.05.09"]
[WhiteClock "0:00:07"]
[BlackClock "0:00:50"]

1. e4 {[%clk 0:02:56]}  c6 {[%clk 0:03:00]} 2. d4 {[%clk 0:02:56]}  d5 {[%clk 0:03:00]} 3. e5 {[%clk 0:02:56]}  Bf5 {[%clk 0:02:59]} 4. h4 {[%clk 0:02:53]}  h5 {[%clk 0:02:59]} 5. Bd3 {[%clk 0:02:54]}  Bxd3 {[%clk 0:02:59]} 6. Qxd3 {[%clk 0:02:53]}  Qb6 {[%clk 0:02:59]} 7. Nf3 {[%clk 0:02:42]}  Qa6 {[%clk 0:02:55]} 8. e6 {[%clk 0:02:23]}  Qxd3 {[%clk 0:02:49]} 9. exf7+ {[%clk 0:02:24]}  Kxf7 {[%clk 0:02:50]} 10. cxd3 {[%clk 0:02:17]}  Nf6 {[%clk 0:02:45]} 11. O-O {[%clk 0:02:16]}  Na6 {[%clk 0:02:39]} 12. a3 {[%clk 0:02:03]}  Re8 {[%clk 0:02:34]} 13. Bf4 {[%clk 0:02:00]}  g6 {[%clk 0:02:22]} 14. Nbd2 {[%clk 0:01:45]}  Ng4 {[%clk 0:02:20]} 15. Rae1 {[%clk 0:01:36]}  Bh6 {[%clk 0:02:19]} 16. Bxh6 {[%clk 0:01:31]}  Nxh6 {[%clk 0:02:18]} 17. Ng5+ {[%clk 0:01:31]}  Kg7 {[%clk 0:02:17]} 18. Ndf3 {[%clk 0:01:29]}  Nf5 {[%clk 0:02:16]} 19. Re5 {[%clk 0:01:13]}  Nc7 {[%clk 0:02:15]} 20. Rfe1 {[%clk 0:01:14]}  Nb5 {[%clk 0:02:16]} 21. Ne6+ {[%clk 0:01:07]}  Kf6 {[%clk 0:02:15]} 22. a4 {[%clk 0:01:05]}  Nbd6 {[%clk 0:02:10]} 23. Nf4 {[%clk 0:01:03]}  Reg8 {[%clk 0:01:52]} 24. Re6+ {[%clk 0:01:02]}  Kf7 {[%clk 0:01:52]} 25. Ng5+ {[%clk 0:00:58]}  Ke8 {[%clk 0:01:49]} 26. Nxg6 {[%clk 0:00:45]}  Rh6 {[%clk 0:01:49]} 27. Nf4 {[%clk 0:00:32]}  Rxe6 {[%clk 0:01:47]} 28. Rxe6 {[%clk 0:00:28]}  Nxh4 {[%clk 0:01:45]} 29. Ngh3 {[%clk 0:00:11]}  Nf3+ {[%clk 0:01:44]} 30. Kh1 {[%clk 0:00:09]}  Nxd4 {[%clk 0:01:45]} 31. Rh6 {[%clk 0:00:09]}  N6f5 {[%clk 0:01:40]} 32. Rxh5 {[%clk 0:00:09]}  e5 {[%clk 0:01:41]} 33. Ne2 {[%clk 0:00:05]}  Nxe2 {[%clk 0:01:27]} 34. Rxf5 {[%clk 0:00:05]}  Nc1 {[%clk 0:01:28]} 35. Rxe5+ {[%clk 0:00:05]}  Kd7 {[%clk 0:01:26]} 36. Nf4 {[%clk 0:00:05]}  Kd6 {[%clk 0:01:21]} 37. d4 {[%clk 0:00:04]}  Nb3 {[%clk 0:01:20]} 38. Re6+ {[%clk 0:00:03]}  Kd7 {[%clk 0:01:20]} 39. Rh6 {[%clk 0:00:03]}  Nxd4 {[%clk 0:01:20]} 40. Rh7+ {[%clk 0:00:03]}  Kd6 {[%clk 0:01:20]} 41. f3 {[%clk 0:00:04]}  Nf5 {[%clk 0:01:13]} 42. Rxb7 {[%clk 0:00:04]}  a5 {[%clk 0:01:12]} 43. Ra7 {[%clk 0:00:04]}  Rb8 {[%clk 0:01:10]} 44. Nd3 {[%clk 0:00:02]}  Rb3 {[%clk 0:01:10]} 45. Nf4 {[%clk 0:00:02]}  Rb4 {[%clk 0:01:08]} 46. Rxa5 {[%clk 0:00:02]}  Rxf4 {[%clk 0:01:08]} 47. Ra8 {[%clk 0:00:03]}  Rb4 {[%clk 0:01:08]} 48. a5 {[%clk 0:00:03]}  Rxb2 {[%clk 0:01:08]} 49. a6 {[%clk 0:00:03]}  Ng3+ {[%clk 0:01:08]} 50. Kh2 {[%clk 0:00:03]}  Nf1+ {[%clk 0:01:04]} 51. Kh3 {[%clk 0:00:03]}  Ra2 {[%clk 0:01:01]} 52. a7 {[%clk 0:00:03]}  Kc7 {[%clk 0:01:00]} 53. g4 {[%clk 0:00:02]}  d4 {[%clk 0:01:00]} 54. g5 {[%clk 0:00:01]}  d3 {[%clk 0:01:00]} 55. Re8 {[%clk 0:00:01]}  Rxa7 {[%clk 0:00:57]} 56. Re1 {[%clk 0:00:01]}  Nd2 {[%clk 0:00:54]} 57. Rd1 {[%clk 0:00:02]}  Nxf3 {[%clk 0:00:54]} 58. Kg4 {[%clk 0:00:02]}  Nxg5 {[%clk 0:00:52]} 59. Kxg5 {[%clk 0:00:03]}  Ra3 {[%clk 0:00:52]} 60. Kf4 {[%clk 0:00:03]}  Kd6 {[%clk 0:00:52]} 61. Ke4 {[%clk 0:00:04]}  Kc5 {[%clk 0:00:52]} 62. Rxd3 {[%clk 0:00:04]}  Rxd3 {[%clk 0:00:51]} 63. Kxd3 {[%clk 0:00:05]}  Kb4 {[%clk 0:00:52]} 64. Kc2 {[%clk 0:00:06]}  Kc4 {[%clk 0:00:52]} 65. Kc1 {[%clk 0:00:06]}  Kc3 {[%clk 0:00:52]} 66. Kd1 {[%clk 0:00:07]}  c5 {[%clk 0:00:49]} 67. Kc1 {[%clk 0:00:07]}  c4 {[%clk 0:00:49]} 68. Kd1 {[%clk 0:00:08]}  Kb2 {[%clk 0:00:50]} 69. Kd2 {[%clk 0:00:07]}  c3+ {[%clk 0:00:50]} 0-1


[Site "https://www.chess.com"]

[Event "Titled Tuesday Blitz May 9 Early 2023"]
[White "Galchenko, Matvey"]
[Black "Xu, Daniel"]
[WhiteFideId "24175480"]
[BlackFideId "2627345"]
[WhiteElo "2423"]
[BlackElo "1980"]
[Result "1-0"]
[Round "02"]
[TimeControl "180+2"]
[Date "2023.05.09"]
[WhiteClock "0:00:12"]
[BlackClock "0:00:00"]

1. f4 {[%clk 0:02:41]}  Nf6 {[%clk 0:02:57]} 2. Nf3 {[%clk 0:02:41]}  g5 {[%clk 0:02:58]} 3. g3 {[%clk 0:02:42]}  gxf4 {[%clk 0:02:56]} 4. gxf4 {[%clk 0:02:42]}  d5 {[%clk 0:02:53]} 5. b3 {[%clk 0:02:39]}  Rg8 {[%clk 0:02:50]} 6. Bb2 {[%clk 0:02:39]}  Bg7 {[%clk 0:02:50]} 7. Rg1 {[%clk 0:02:39]}  e6 {[%clk 0:02:36]} 8. e3 {[%clk 0:02:39]}  Nh5 {[%clk 0:02:25]} 9. Bxg7 {[%clk 0:02:29]}  Rxg7 {[%clk 0:02:26]} 10. Rxg7 {[%clk 0:02:28]}  Nxg7 {[%clk 0:02:26]} 11. Nc3 {[%clk 0:02:28]}  Qf6 {[%clk 0:02:20]} 12. Ne5 {[%clk 0:02:26]}  Qh4+ {[%clk 0:02:11]} 13. Ke2 {[%clk 0:02:27]}  Qxh2+ {[%clk 0:02:09]} 14. Ke1 {[%clk 0:02:27]}  Qg3+ {[%clk 0:01:58]} 15. Ke2 {[%clk 0:02:27]}  Qh2+ {[%clk 0:01:58]} 16. Kd3 {[%clk 0:02:22]}  b6 {[%clk 0:01:48]} 17. Nb5 {[%clk 0:02:12]}  Ba6 {[%clk 0:01:48]} 18. Kc3 {[%clk 0:02:12]}  Bxb5 {[%clk 0:01:15]} 19. Bxb5+ {[%clk 0:02:12]}  Ke7 {[%clk 0:01:14]} 20. Qg4 {[%clk 0:02:11]}  Qh6 {[%clk 0:01:00]} 21. Rg1 {[%clk 0:02:08]}  Kf8 {[%clk 0:00:50]} 22. Kb2 {[%clk 0:00:42]}  Qf6 {[%clk 0:00:49]} 23. c3 {[%clk 0:00:40]}  a6 {[%clk 0:00:48]} 24. Bd3 {[%clk 0:00:40]}  h5 {[%clk 0:00:49]} 25. Qh3 {[%clk 0:00:34]}  c5 {[%clk 0:00:35]} 26. Rg5 {[%clk 0:00:33]}  Ra7 {[%clk 0:00:32]} 27. a4 {[%clk 0:00:28]}  Nd7 {[%clk 0:00:24]} 28. Nf3 {[%clk 0:00:28]}  c4 {[%clk 0:00:19]} 29. bxc4 {[%clk 0:00:24]}  Nc5 {[%clk 0:00:19]} 30. Bc2 {[%clk 0:00:24]}  dxc4 {[%clk 0:00:20]} 31. Ne5 {[%clk 0:00:20]}  b5 {[%clk 0:00:18]} 32. Nc6 {[%clk 0:00:20]}  Rc7 {[%clk 0:00:11]} 33. Rxc5 {[%clk 0:00:21]}  e5 {[%clk 0:00:06]} 34. Nxe5 {[%clk 0:00:19]}  Qd8 {[%clk 0:00:02]} 35. Rxc7 {[%clk 0:00:15]}  Qxc7 {[%clk 0:00:02]} 36. axb5 {[%clk 0:00:14]}  axb5 {[%clk 0:00:02]} 37. Qf3 {[%clk 0:00:13]}  h4 {[%clk 0:00:02]} 38. Qa8+ {[%clk 0:00:13]}  Ke7 {[%clk 0:00:02]} 39. Qd5 {[%clk 0:00:13]}  Ne6 {[%clk 0:00:02]} 40. f5 {[%clk 0:00:14]}  Nc5 {[%clk 0:00:02]} 41. Qxf7+ {[%clk 0:00:13]}  Kd6 {[%clk 0:00:02]} 42. Qxc7+ {[%clk 0:00:13]}  Kxc7 {[%clk 0:00:02]} 43. f6 {[%clk 0:00:13]}  Kd6 {[%clk 0:00:02]} 44. f7 {[%clk 0:00:13]}  Ke7 {[%clk 0:00:03]} 45. Bf5 {[%clk 0:00:12]}  Na4+ {[%clk 0:00:02]} 46. Kc2 {[%clk 0:00:12]}  Nb6 {[%clk 0:00:02]} 47. Be6 {[%clk 0:00:11]}  Kf8 {[%clk 0:00:00]} 48. Ng6+ {[%clk 0:00:12]} 1-0


[Site "https://www.chess.com"]

[Event "Titled Tuesday Blitz May 9 Early 2023"]
[White "Gutkin, Ilya"]
[Black "Remizov, Yaroslav"]
[WhiteFideId "16203470"]
[BlackFideId "34134015"]
[WhiteElo "2265"]
[BlackElo "2400"]
[Result "0-1"]
[Round "02"]
[TimeControl "180+2"]
[Date "2023.05.09"]
[WhiteClock "0:00:00"]
[BlackClock "0:00:41"]

1. Nf3 {[%clk 0:03:00]}  g5 {[%clk 0:02:58]} 2. Nxg5 {[%clk 0:03:00]}  e5 {[%clk 0:02:59]} 3. d4 {[%clk 0:02:56]}  Be7 {[%clk 0:02:58]} 4. Nf3 {[%clk 0:02:52]}  e4 {[%clk 0:02:58]} 5. Ng1 {[%clk 0:02:50]}  d5 {[%clk 0:02:58]} 6. Bf4 {[%clk 0:02:47]}  c5 {[%clk 0:02:55]} 7. dxc5 {[%clk 0:02:32]}  Bxc5 {[%clk 0:02:49]} 8. e3 {[%clk 0:02:28]}  Ne7 {[%clk 0:02:46]} 9. Nd2 {[%clk 0:02:26]}  Ng6 {[%clk 0:02:44]} 10. Bg3 {[%clk 0:02:25]}  Nc6 {[%clk 0:02:44]} 11. Nb3 {[%clk 0:02:24]}  Be7 {[%clk 0:02:42]} 12. Ne2 {[%clk 0:02:20]}  h5 {[%clk 0:02:40]} 13. h3 {[%clk 0:02:02]}  h4 {[%clk 0:02:40]} 14. Bh2 {[%clk 0:02:01]}  Be6 {[%clk 0:02:40]} 15. Ned4 {[%clk 0:01:58]}  Qb6 {[%clk 0:02:38]} 16. Be2 {[%clk 0:01:50]}  Bf6 {[%clk 0:02:25]} 17. c3 {[%clk 0:01:48]}  Nxd4 {[%clk 0:02:19]} 18. exd4 {[%clk 0:01:43]}  Rg8 {[%clk 0:02:13]} 19. g4 {[%clk 0:01:27]}  hxg3 {[%clk 0:02:12]} 20. Bxg3 {[%clk 0:01:26]}  Nh4 {[%clk 0:02:09]} 21. Kf1 {[%clk 0:00:32]}  Nf5 {[%clk 0:02:07]} 22. Bf4 {[%clk 0:00:26]}  Ke7 {[%clk 0:02:02]} 23. Bg4 {[%clk 0:00:25]}  Nh4 {[%clk 0:01:59]} 24. Nc5 {[%clk 0:00:20]}  Bxg4 {[%clk 0:01:54]} 25. hxg4 {[%clk 0:00:21]}  Nf3 {[%clk 0:01:55]} 26. Qe2 {[%clk 0:00:14]}  Rxg4 {[%clk 0:01:54]} 27. Nxe4 {[%clk 0:00:14]}  dxe4 {[%clk 0:01:14]} 28. Qxe4+ {[%clk 0:00:15]}  Kf8 {[%clk 0:01:14]} 29. Qxf3 {[%clk 0:00:16]}  Qb5+ {[%clk 0:01:14]} 30. Qe2 {[%clk 0:00:13]}  Qxe2+ {[%clk 0:01:14]} 31. Kxe2 {[%clk 0:00:14]}  Rxf4 {[%clk 0:01:15]} 32. Ke3 {[%clk 0:00:13]}  Rf5 {[%clk 0:01:14]} 33. Rag1 {[%clk 0:00:12]}  Re8+ {[%clk 0:01:14]} 34. Kd3 {[%clk 0:00:12]}  Rxf2 {[%clk 0:01:15]} 35. Rh6 {[%clk 0:00:12]}  b5 {[%clk 0:01:08]} 36. b3 {[%clk 0:00:05]}  a5 {[%clk 0:00:59]} 37. a4 {[%clk 0:00:05]}  b4 {[%clk 0:00:57]} 38. cxb4 {[%clk 0:00:06]}  axb4 {[%clk 0:00:58]} 39. Kc4 {[%clk 0:00:05]}  Rc2+ {[%clk 0:00:56]} 40. Kxb4 {[%clk 0:00:05]}  Rb8+ {[%clk 0:00:56]} 41. Ka3 {[%clk 0:00:05]}  Be7+ {[%clk 0:00:55]} 42. b4 {[%clk 0:00:04]}  Bxb4+ {[%clk 0:00:42]} 43. Kb3 {[%clk 0:00:03]}  Rc3+ {[%clk 0:00:41]} 44. Kb2 {[%clk 0:00:00]}  Ke7 {[%clk 0:00:41]} 0-1


[Site "https://www.chess.com"]

[Event "Titled Tuesday Blitz May 9 Early 2023"]
[White "Bashkansky, Ethan"]
[Black "Sadykov, Ramil"]
[WhiteFideId "2071533"]
[BlackFideId "24113590"]
[WhiteElo "2356"]
[BlackElo "2245"]
[Result "0-1"]
[Round "02"]
[TimeControl "180+2"]
[Date "2023.05.09"]
[WhiteClock "0:00:01"]
[BlackClock "0:00:04"]

1. d4 {[%clk 0:03:00]}  Nf6 {[%clk 0:02:57]} 2. c4 {[%clk 0:03:01]}  e6 {[%clk 0:02:56]} 3. Nc3 {[%clk 0:03:02]}  Bb4 {[%clk 0:02:54]} 4. Qc2 {[%clk 0:03:02]}  O-O {[%clk 0:02:49]} 5. Nf3 {[%clk 0:03:02]}  b6 {[%clk 0:02:46]} 6. e4 {[%clk 0:03:02]}  Bxc3+ {[%clk 0:02:32]} 7. bxc3 {[%clk 0:03:03]}  d6 {[%clk 0:02:32]} 8. Bd3 {[%clk 0:03:02]}  e5 {[%clk 0:02:27]} 9. dxe5 {[%clk 0:03:01]}  dxe5 {[%clk 0:02:26]} 10. Nxe5 {[%clk 0:03:02]}  Re8 {[%clk 0:02:14]} 11. f4 {[%clk 0:02:53]}  Na6 {[%clk 0:01:46]} 12. Ba3 {[%clk 0:02:34]}  Bb7 {[%clk 0:01:14]} 13. O-O-O {[%clk 0:02:17]}  Qc8 {[%clk 0:01:01]} 14. Rhg1 {[%clk 0:02:08]}  Ng4 {[%clk 0:00:32]} 15. Nxg4 {[%clk 0:02:01]}  Qxg4 {[%clk 0:00:33]} 16. g3 {[%clk 0:01:46]}  Nc5 {[%clk 0:00:25]} 17. Bxc5 {[%clk 0:01:32]}  bxc5 {[%clk 0:00:26]} 18. e5 {[%clk 0:01:29]}  g6 {[%clk 0:00:26]} 19. Be4 {[%clk 0:01:24]}  Rab8 {[%clk 0:00:23]} 20. Rge1 {[%clk 0:01:05]}  Bxe4 {[%clk 0:00:16]} 21. Qxe4 {[%clk 0:00:58]}  Re6 {[%clk 0:00:15]} 22. f5 {[%clk 0:00:29]}  Qxf5 {[%clk 0:00:10]} 23. Qxf5 {[%clk 0:00:29]}  gxf5 {[%clk 0:00:11]} 24. Rd5 {[%clk 0:00:29]}  Rbe8 {[%clk 0:00:07]} 25. Rxc5 {[%clk 0:00:30]}  c6 {[%clk 0:00:06]} 26. Kc2 {[%clk 0:00:22]}  Kg7 {[%clk 0:00:06]} 27. Kd3 {[%clk 0:00:14]}  Kg6 {[%clk 0:00:06]} 28. Re3 {[%clk 0:00:13]}  f6 {[%clk 0:00:06]} 29. a4 {[%clk 0:00:06]}  fxe5 {[%clk 0:00:05]} 30. a5 {[%clk 0:00:04]}  a6 {[%clk 0:00:04]} 31. Ke2 {[%clk 0:00:04]}  Kf6 {[%clk 0:00:03]} 32. Kf3 {[%clk 0:00:04]}  Rb8 {[%clk 0:00:02]} 33. g4 {[%clk 0:00:03]}  fxg4+ {[%clk 0:00:01]} 34. Kxg4 {[%clk 0:00:04]}  Rg8+ {[%clk 0:00:02]} 35. Kf3 {[%clk 0:00:04]}  Rge8 {[%clk 0:00:01]} 36. Re4 {[%clk 0:00:03]}  Rg8 {[%clk 0:00:01]} 37. Ke3 {[%clk 0:00:03]}  Rg5 {[%clk 0:00:02]} 38. Rh4 {[%clk 0:00:04]}  Ke7 {[%clk 0:00:02]} 39. Rxh7+ {[%clk 0:00:03]}  Kd6 {[%clk 0:00:03]} 40. Rxc6+ {[%clk 0:00:02]}  Kxc6 {[%clk 0:00:03]} 41. Ra7 {[%clk 0:00:03]}  Kc5 {[%clk 0:00:03]} 42. Rc7+ {[%clk 0:00:03]}  Rc6 {[%clk 0:00:04]} 43. Ra7 {[%clk 0:00:02]}  Kxc4 {[%clk 0:00:04]} 44. Rh7 {[%clk 0:00:02]}  Kxc3 {[%clk 0:00:04]} 45. h4 {[%clk 0:00:01]}  Rg1 {[%clk 0:00:04]} 46. Rh6 {[%clk 0:00:01]}  Rxh6 {[%clk 0:00:04]} 0-1


[Site "https://www.chess.com"]

[Event "Titled Tuesday Blitz May 9 Early 2023"]
[White "Koellner, Ruben Gideon"]
[Black "Korpics, Zsolt"]
[WhiteFideId "12993093"]
[BlackFideId "705241"]
[WhiteElo "2314"]
[BlackElo "2341"]
[Result "1-0"]
[Round "02"]
[TimeControl "180+2"]
[Date "2023.05.09"]
[WhiteClock "0:00:50"]
[BlackClock "0:00:25"]

1. d4 {[%clk 0:03:00]}  Nf6 {[%clk 0:02:59]} 2. Nf3 {[%clk 0:03:01]}  e6 {[%clk 0:02:59]} 3. Nbd2 {[%clk 0:03:01]}  c5 {[%clk 0:02:52]} 4. e3 {[%clk 0:03:01]}  d5 {[%clk 0:02:52]} 5. c3 {[%clk 0:03:01]}  Nc6 {[%clk 0:02:46]} 6. Bd3 {[%clk 0:02:56]}  cxd4 {[%clk 0:02:45]} 7. exd4 {[%clk 0:02:56]}  Bd6 {[%clk 0:02:45]} 8. O-O {[%clk 0:02:56]}  O-O {[%clk 0:02:45]} 9. Re1 {[%clk 0:02:53]}  Qc7 {[%clk 0:02:44]} 10. Qe2 {[%clk 0:02:52]}  Re8 {[%clk 0:02:42]} 11. Ne5 {[%clk 0:02:52]}  Nd7 {[%clk 0:02:40]} 12. Bxh7+ {[%clk 0:02:46]}  Kf8 {[%clk 0:02:22]} 13. f4 {[%clk 0:02:17]}  Nf6 {[%clk 0:02:16]} 14. Bd3 {[%clk 0:02:16]}  Bd7 {[%clk 0:02:06]} 15. g4 {[%clk 0:02:11]}  g6 {[%clk 0:01:58]} 16. g5 {[%clk 0:02:02]}  Nh5 {[%clk 0:01:58]} 17. Qg4 {[%clk 0:01:49]}  Bxe5 {[%clk 0:01:42]} 18. fxe5 {[%clk 0:01:50]}  Ne7 {[%clk 0:01:33]} 19. Nf1 {[%clk 0:01:44]}  Nf5 {[%clk 0:01:30]} 20. Qh3 {[%clk 0:01:37]}  Kg7 {[%clk 0:01:27]} 21. Ne3 {[%clk 0:01:34]}  Rh8 {[%clk 0:01:14]} 22. Qf3 {[%clk 0:01:23]}  Rh7 {[%clk 0:01:06]} 23. Ng4 {[%clk 0:01:22]}  Rah8 {[%clk 0:01:05]} 24. Nh6 {[%clk 0:01:17]}  b5 {[%clk 0:00:39]} 25. Bxf5 {[%clk 0:01:09]}  gxf5 {[%clk 0:00:36]} 26. Qxh5 {[%clk 0:01:07]}  Be8 {[%clk 0:00:32]} 27. Qe2 {[%clk 0:01:01]}  Kf8 {[%clk 0:00:31]} 28. Bd2 {[%clk 0:00:55]}  Rg7 {[%clk 0:00:31]} 29. Kf2 {[%clk 0:00:54]}  Qe7 {[%clk 0:00:31]} 30. h4 {[%clk 0:00:54]}  Rxg5 {[%clk 0:00:25]} 31. Bxg5 {[%clk 0:00:50]} 1-0


[Site "https://www.chess.com"]

[Event "Titled Tuesday Blitz May 9 Early 2023"]
[White "Mazurkiewicz, Michal"]
[Black "Isanzhulov, Arystan"]
[WhiteFideId "1124943"]
[BlackFideId "13711644"]
[WhiteElo "2054"]
[BlackElo "2467"]
[Result "0-1"]
[Round "02"]
[TimeControl "180+2"]
[Date "2023.05.09"]
[WhiteClock "0:00:02"]
[BlackClock "0:00:10"]

1. e4 {[%clk 0:03:00]}  e6 {[%clk 0:02:58]} 2. d3 {[%clk 0:03:00]}  d5 {[%clk 0:02:57]} 3. Nd2 {[%clk 0:03:01]}  c5 {[%clk 0:02:54]} 4. Ngf3 {[%clk 0:03:02]}  Nc6 {[%clk 0:02:54]} 5. g3 {[%clk 0:03:02]}  Bd6 {[%clk 0:02:55]} 6. Bg2 {[%clk 0:03:03]}  Nge7 {[%clk 0:02:55]} 7. O-O {[%clk 0:03:03]}  O-O {[%clk 0:02:55]} 8. Re1 {[%clk 0:03:04]}  f6 {[%clk 0:02:54]} 9. c3 {[%clk 0:03:02]}  b6 {[%clk 0:02:54]} 10. d4 {[%clk 0:03:02]}  Bc7 {[%clk 0:02:52]} 11. e5 {[%clk 0:03:00]}  f5 {[%clk 0:02:48]} 12. Nf1 {[%clk 0:02:52]}  Qd7 {[%clk 0:02:46]} 13. h4 {[%clk 0:02:51]}  a5 {[%clk 0:02:46]} 14. h5 {[%clk 0:02:51]}  Ba6 {[%clk 0:02:46]} 15. Bf4 {[%clk 0:02:52]}  h6 {[%clk 0:02:43]} 16. Ne3 {[%clk 0:02:49]}  Kf7 {[%clk 0:02:42]} 17. Qd2 {[%clk 0:02:42]}  Ke8 {[%clk 0:02:41]} 18. Rad1 {[%clk 0:02:40]}  Kd8 {[%clk 0:02:38]} 19. c4 {[%clk 0:02:40]}  dxc4 {[%clk 0:02:23]} 20. Qc2 {[%clk 0:02:18]}  Nb4 {[%clk 0:02:20]} 21. Qc3 {[%clk 0:01:59]}  Ned5 {[%clk 0:02:08]} 22. Nxd5 {[%clk 0:01:56]}  Nxd5 {[%clk 0:02:08]} 23. Qa3 {[%clk 0:01:48]}  Qb5 {[%clk 0:01:43]} 24. Nh4 {[%clk 0:01:20]}  Bb7 {[%clk 0:01:26]} 25. Ng6 {[%clk 0:01:11]}  Re8 {[%clk 0:01:26]} 26. Be3 {[%clk 0:00:40]}  Kc8 {[%clk 0:01:14]} 27. dxc5 {[%clk 0:00:38]}  Ra6 {[%clk 0:00:42]} 28. cxb6 {[%clk 0:00:32]}  Bxb6 {[%clk 0:00:43]} 29. Bxb6 {[%clk 0:00:31]}  Rxb6 {[%clk 0:00:44]} 30. Bxd5 {[%clk 0:00:27]}  Bxd5 {[%clk 0:00:43]} 31. Ne7+ {[%clk 0:00:27]}  Kd7 {[%clk 0:00:21]} 32. Nxd5 {[%clk 0:00:27]}  exd5 {[%clk 0:00:22]} 33. Qf3 {[%clk 0:00:27]}  Ke6 {[%clk 0:00:21]} 34. g4 {[%clk 0:00:26]}  Rf8 {[%clk 0:00:21]} 35. Rd2 {[%clk 0:00:17]}  Rbb8 {[%clk 0:00:18]} 36. Red1 {[%clk 0:00:12]}  Rbd8 {[%clk 0:00:18]} 37. Qg2 {[%clk 0:00:08]}  Qe8 {[%clk 0:00:18]} 38. Rxd5 {[%clk 0:00:05]}  Rxd5 {[%clk 0:00:07]} 39. Qxd5+ {[%clk 0:00:06]}  Ke7 {[%clk 0:00:08]} 40. Qd6+ {[%clk 0:00:06]}  Kf7 {[%clk 0:00:09]} 41. Qg6+ {[%clk 0:00:06]}  Kg8 {[%clk 0:00:08]} 42. gxf5 {[%clk 0:00:06]}  Qxe5 {[%clk 0:00:08]} 43. Rd7 {[%clk 0:00:05]}  Qe1+ {[%clk 0:00:08]} 44. Kg2 {[%clk 0:00:05]}  Qe4+ {[%clk 0:00:09]} 45. Kg1 {[%clk 0:00:05]}  Qe1+ {[%clk 0:00:09]} 46. Kg2 {[%clk 0:00:06]}  Qe4+ {[%clk 0:00:09]} 47. Kg1 {[%clk 0:00:05]}  Qe5 {[%clk 0:00:10]} 48. f4 {[%clk 0:00:03]}  Qe3+ {[%clk 0:00:08]} 49. Kg2 {[%clk 0:00:03]}  Qe4+ {[%clk 0:00:09]} 50. Kg3 {[%clk 0:00:04]}  Qe3+ {[%clk 0:00:09]} 51. Kg2 {[%clk 0:00:04]}  Qe2+ {[%clk 0:00:09]} 52. Kg3 {[%clk 0:00:05]}  Qe1+ {[%clk 0:00:09]} 53. Kg2 {[%clk 0:00:05]}  Qe2+ {[%clk 0:00:10]} 54. Kg3 {[%clk 0:00:06]}  Qxb2 {[%clk 0:00:10]} 55. Qe6+ {[%clk 0:00:06]}  Kh8 {[%clk 0:00:11]} 56. Qg6 {[%clk 0:00:06]}  Qc3+ {[%clk 0:00:11]} 57. Kg4 {[%clk 0:00:06]}  Qa1 {[%clk 0:00:11]} 58. Kf3 {[%clk 0:00:05]}  Qf1+ {[%clk 0:00:11]} 59. Ke3 {[%clk 0:00:05]}  Qe1+ {[%clk 0:00:11]} 60. Kf3 {[%clk 0:00:06]}  Qf1+ {[%clk 0:00:11]} 61. Ke3 {[%clk 0:00:06]}  Qe1+ {[%clk 0:00:09]} 62. Kf3 {[%clk 0:00:06]}  Qc3+ {[%clk 0:00:10]} 63. Kg4 {[%clk 0:00:06]}  Qb2 {[%clk 0:00:10]} 64. Rc7 {[%clk 0:00:03]}  a4 {[%clk 0:00:09]} 65. Rf7 {[%clk 0:00:03]}  Rg8 {[%clk 0:00:03]} 66. f6 {[%clk 0:00:02]}  Qxf6 {[%clk 0:00:04]} 67. Rxf6 {[%clk 0:00:02]}  gxf6 {[%clk 0:00:05]} 68. Kf3 {[%clk 0:00:01]}  Rxg6 {[%clk 0:00:05]} 69. hxg6 {[%clk 0:00:02]}  Kg7 {[%clk 0:00:06]} 70. f5 {[%clk 0:00:03]}  h5 {[%clk 0:00:07]} 71. Ke3 {[%clk 0:00:03]}  h4 {[%clk 0:00:07]} 72. Kd4 {[%clk 0:00:04]}  h3 {[%clk 0:00:07]} 73. Kxc4 {[%clk 0:00:04]}  h2 {[%clk 0:00:08]} 74. Kd3 {[%clk 0:00:04]}  h1=Q {[%clk 0:00:09]} 75. Ke3 {[%clk 0:00:02]}  Qd5 {[%clk 0:00:10]} 0-1


[Site "https://www.chess.com"]